[Event "CCT Chessable Masters Play-In 2025"]
[Site "Online"]
[Date "2025.02.17"]
[Round "5.19"]
[White "Aronian, Levon"]
[Black "Le, Quang Liem"]
[Result "0-1"]
[ECO "A22"]
[WhiteElo "2745"]
[BlackElo "2739"]
[PlyCount "172"]
[EventDate "2025.02.13"]
[EventType "swiss"]
[EventCountry "NET"]
[TimeControl "600"]

1. c4 {[%emt 0:00:01]} Nf6 {[%emt 0:00:02]} 2. Nc3 {[%emt 0:00:04]} e5 {[%emt 0:00:02]} 3. g3 {[%emt 0:00:07]} Bc5 {[%emt 0:00:05]} 4. Bg2 {[%emt 0:00:03]} O-O {[%emt 0:00:01]} 5. d3 {[%emt 0:00:02]} c6 {[%emt 0:00:10]} 6. Nf3 {[%emt 0:00:08]} Re8 {[%emt 0:00:02]} 7. O-O {[%emt 0:00:54]} d6 {[%emt 0:00:21]} 8. d4 {[%emt 0:00:44]} exd4 {[%emt 0:00:02]} 9. Nxd4 {[%emt 0:00:01]} a5 {[%emt 0:00:07]} 10. Bf4 {[%emt 0:00:14]} a4 {[%emt 0:00:32]} 11. e3 {[%emt 0:00:48]} Qa5 {[%emt 0:00:15]} 12. Qd2 {[%emt 0:01:27]} Nbd7 {[%emt 0:00:13]} 13. Nc2 {[%emt 0:02:58]} Ne5 {[%emt 0:00:12]} 14. b3 {[%emt 0:00:02]} Bg4 {[%emt 0:01:13]} 15. Rab1 {[%emt 0:00:02]} axb3 {[%emt 0:00:02]} 16. axb3 {[%emt 0:00:00]} Qc7 {[%emt 0:00:13]} 17. Nd4 {[%emt 0:00:19]} h6 {[%emt 0:00:38]} 18. h3 {[%emt 0:00:17]} Bxh3 {[%emt 0:00:09]} 19. Bxe5 {[%emt 0:00:20]} dxe5 {[%emt 0:00:18]} 20. Bxh3 {[%emt 0:00:05]} exd4 {[%emt 0:00:01]} 21. exd4 {[%emt 0:00:00]} Rad8 {[%emt 0:00:01]} 22. Ne2 {[%emt 0:00:03]} Ne4 {[%emt 0:00:08]} 23. Qd3 {[%emt 0:00:10]} Qe7 {[%emt 0:01:02]} 24. Bg2 {[%emt 0:00:04]} Bb4 {[%emt 0:00:25]} 25. Rbd1 {[%emt 0:00:31]} Nc5 {[%emt 0:00:45]} 26. Qf3 {[%emt 0:00:01]} Qxe2 {[%emt 0:00:06]} 27. dxc5 {[%emt 0:00:00]} Rxd1 {[%emt 0:00:03]} 28. Rxd1 {[%emt 0:00:01]} Bxc5 {[%emt 0:00:00]} 29. Rd7 {[%emt 0:00:02]} Qe1+ {[%emt 0:00:43]} 30. Bf1 {[%emt 0:00:02]} Qe6 {[%emt 0:00:25]} 31. Rxb7 {[%emt 0:00:01]} Rd8 {[%emt 0:00:01]} 32. Bd3 {[%emt 0:00:07]} g6 {[%emt 0:00:22]} 33. Kg2 {[%emt 0:00:01]} Kg7 {[%emt 0:00:14]} 34. b4 {[%emt 0:00:01]} Bd4 {[%emt 0:00:04]} 35. c5 {[%emt 0:00:01]} Ra8 {[%emt 0:00:19]} 36. Qe4 {[%emt 0:00:01]} Qxe4+ {[%emt 0:00:01]} 37. Bxe4 {[%emt 0:00:01]} Ra2 {[%emt 0:00:01]} 38. Bxc6 {[%emt 0:00:01]} Rxf2+ {[%emt 0:00:00]} 39. Kh3 {[%emt 0:00:00]} Rf5 {[%emt 0:00:19]} 40. Rd7 {[%emt 0:00:02]} Bxc5 {[%emt 0:00:01]} 41. bxc5 {[%emt 0:00:01]} Rxc5 {[%emt 0:00:00]} 42. Bd5 {[%emt 0:00:00]} Kf6 {[%emt 0:00:01]} 43. Rxf7+ {[%emt 0:00:01]} Kg5 {[%emt 0:00:00]} 44. Bf3 {[%emt 0:00:00]} Re5 {[%emt 0:00:01]} 45. Rf4 {[%emt 0:00:01]} h5 {[%emt 0:00:01]} 46. Rd4 {[%emt 0:00:01]} Re6 {[%emt 0:00:00]} 47. Rd5+ {[%emt 0:00:01]} Kh6 {[%emt 0:00:01]} 48. Kh4 {[%emt 0:00:02]} Rf6 {[%emt 0:00:00]} 49. Bxh5 {[%emt 0:00:00]} gxh5 {[%emt 0:00:01]} 50. Rxh5+ {[%emt 0:00:01]} Kg6 {[%emt 0:00:00]} 51. Rg5+ {[%emt 0:00:00]} Kf7 {[%emt 0:00:01]} 52. g4 {[%emt 0:00:01]} Ra6 {[%emt 0:00:01]} 53. Rf5+ {[%emt 0:00:00]} Kg7 {[%emt 0:00:01]} 54. Rg5+ {[%emt 0:00:01]} Kf7 {[%emt 0:00:00]} 55. Rh5 {[%emt 0:00:00]} Ke7 {[%emt 0:00:01]} 56. Rf5 {[%emt 0:00:00]} Ke6 {[%emt 0:00:01]} 57. Rg5 {[%emt 0:00:00]} Ke7 {[%emt 0:00:00]} 58. Rh5 {[%emt 0:00:00]} Ra8 {[%emt 0:00:01]} 59. Rh7+ {[%emt 0:00:01]} Kf6 {[%emt 0:00:01]} 60. Rh6+ {[%emt 0:00:00]} Kg7 {[%emt 0:00:00]} 61. Rh5 {[%emt 0:00:00]} Kg6 {[%emt 0:00:01]} 62. Rg5+ {[%emt 0:00:00]} Kh6 {[%emt 0:00:00]} 63. Rh5+ {[%emt 0:00:00]} Kg7 {[%emt 0:00:00]} 64. Rg5+ {[%emt 0:00:00]} Kf7 {[%emt 0:00:00]} 65. Rh5 {[%emt 0:00:00]} Ke6 {[%emt 0:00:01]} 66. Rg5 {[%emt 0:00:00]} Rf8 {[%emt 0:00:00]} 67. Rh5 {[%emt 0:00:01]} Rg8 {[%emt 0:00:01]} 68. Rh6+ {[%emt 0:00:00]} Kf7 {[%emt 0:00:00]} 69. Rh5 {[%emt 0:00:00]} Kf6 {[%emt 0:00:01]} 70. Rf5+ {[%emt 0:00:00]} Ke6 {[%emt 0:00:00]} 71. Rh5 {[%emt 0:00:00]} Re8 {[%emt 0:00:00]} 72. Rg5 {[%emt 0:00:00]} Kf7 {[%emt 0:00:01]} 73. Rh5 {[%emt 0:00:01]} Kf6 {[%emt 0:00:00]} 74. Rf5+ {[%emt 0:00:00]} Ke7 {[%emt 0:00:00]} 75. Rg5 {[%emt 0:00:00]} Kf8 {[%emt 0:00:01]} 76. Rh5 {[%emt 0:00:00]} Kf7 {[%emt 0:00:00]} 77. Rg5 {[%emt 0:00:00]} Kf6 {[%emt 0:00:01]} 78. Rf5+ {[%emt 0:00:00]} Kg6 {[%emt 0:00:01]} 79. Rg5+ {[%emt 0:00:00]} Kf7 {[%emt 0:00:00]} 80. Rh5 {[%emt 0:00:00]} Ke6 {[%emt 0:00:00]} 81. Rg5 {[%emt 0:00:00]} Re7 {[%emt 0:00:00]} 82. Rf5 {[%emt 0:00:00]} Rf7 {[%emt 0:00:00]} 83. Rg5 {[%emt 0:00:01]} Ke7 {[%emt 0:00:01]} 84. Rh5 {[%emt 0:00:00]} Ke8 {[%emt 0:00:01]} 85. Rg5 {[%emt 0:00:00]} Rg7 {[%emt 0:00:00]} 86. Rh5 Rh7 {[%emt 0:00:00]} 0-1

[Event "CCT Chessable Masters Play-In 2025"]
[Site "Online"]
[Date "2025.02.17"]
[Round "5.20"]
[White "Svidler, Peter"]
[Black "Aravindh, Chithambaram VR."]
[Result "1-0"]
[ECO "A05"]
[WhiteElo "2696"]
[BlackElo "2729"]
[PlyCount "93"]
[EventDate "2025.02.13"]
[EventType "swiss"]
[EventCountry "NET"]
[TimeControl "600"]
[WhiteClock "0:00:20"]

1. Nf3 {[%emt 0:00:01]} Nf6 {[%emt 0:00:04]} 2. g3 {[%emt 0:00:02]} b6 {[%emt 0:00:02]} 3. Bg2 {[%emt 0:00:01]} Bb7 {[%emt 0:00:00]} 4. d3 {[%emt 0:00:03]} d5 {[%emt 0:00:02]} 5. O-O {[%emt 0:00:01]} e6 {[%emt 0:00:03]} 6. e4 {[%emt 0:00:15]} c5 {[%emt 0:00:05]} 7. e5 {[%emt 0:00:36]} Nfd7 {[%emt 0:00:03]} 8. c4 {[%emt 0:00:01]} d4 {[%emt 0:00:05]} 9. Re1 {[%emt 0:00:08]} Be7 {[%emt 0:00:03]} 10. h4 {[%emt 0:00:13]} Nc6 {[%emt 0:00:09]} 11. Bf4 {[%emt 0:00:02]} h6 {[%emt 0:00:08]} 12. h5 {[%emt 0:00:04]} g5 {[%emt 0:00:01]} 13. hxg6 {[%emt 0:00:02]} fxg6 {[%emt 0:00:00]} 14. Na3 {[%emt 0:00:38]} a6 {[%emt 0:00:09]} 15. Nc2 {[%emt 0:02:05]} Qc7 {[%emt 0:00:30]} 16. b4 {[%emt 0:00:07]} g5 {[%emt 0:00:02]} 17. Bd2 {[%emt 0:00:02]} g4 {[%emt 0:00:01]} 18. Nh2 {[%emt 0:00:02]} h5 {[%emt 0:00:11]} 19. bxc5 {[%emt 0:00:03]} Nxc5 {[%emt 0:00:05]} 20. Bf4 {[%emt 0:00:06]} O-O-O {[%emt 0:00:10]} 21. Rb1 {[%emt 0:00:01]} Rhg8 {[%emt 0:00:08]} 22. Na1 {[%emt 0:00:50]} Bg5 {[%emt 0:00:09]} 23. Bxg5 {[%emt 0:00:10]} Rxg5 {[%emt 0:00:00]} 24. Nb3 {[%emt 0:00:02]} Na4 {[%emt 0:01:08]} 25. Nxd4 {[%emt 0:00:19]} Nxd4 {[%emt 0:00:00]} 26. Qxa4 {[%emt 0:00:11]} h4 {[%emt 0:00:40]} 27. Bxb7+ {[%emt 0:00:16]} Qxb7 {[%emt 0:00:08]} 28. Re4 {[%emt 0:00:02]} hxg3 {[%emt 0:01:52]} 29. fxg3 {[%emt 0:00:02]} Nf5 {[%emt 0:00:05]} 30. Nf1 {[%emt 0:00:40]} Rh5 {[%emt 0:00:10]} 31. Qb3 {[%emt 0:00:21]} Nd4 {[%emt 0:01:58]} 32. Qxb6 {[%emt 0:00:21]} Nf3+ {[%emt 0:00:01]} 33. Kf2 {[%emt 0:00:07]} Qxb6+ {[%emt 0:00:01]} 34. Rxb6 {[%emt 0:00:01]} Rxd3 {[%emt 0:00:01]} 35. Rxg4 {[%emt 0:00:13]} Rxe5 {[%emt 0:00:53]} 36. Rg8+ {[%emt 0:00:18]} Kc7 {[%emt 0:00:01]} 37. Rxa6 {[%emt 0:00:03]} Nd4 {[%emt 0:00:06]} 38. Rg7+ {[%emt 0:00:07]} Kb8 {[%emt 0:00:01]} 39. Kg2 {[%emt 0:00:04]} Rd1 {[%emt 0:00:06]} 40. Rd6 {[%emt 0:00:15]} Kc8 {[%emt 0:00:01]} 41. Kh3 {[%emt 0:00:11]} Re2 {[%emt 0:00:15]} 42. c5 {[%emt 0:00:16]} Ree1 {[%emt 0:00:14]} 43. Ra6 {[%emt 0:00:12]} Kb8 {[%emt 0:00:02]} 44. c6 {[%emt 0:00:01]} Nxc6 {[%emt 0:00:01]} 45. Rb6+ {[%emt 0:00:02]} Kc8 {[%emt 0:00:00]} 46. Rxc6+ {[%emt 0:00:01]} Kd8 47. Ra6 {[%emt 0:00:02]} 1-0

[Event "CCT Chessable Masters Play-In 2025"]
[Site "Online"]
[Date "2025.02.17"]
[Round "5.21"]
[White "Andreikin, Dmitry"]
[Black "Rustemov, Alexander"]
[Result "1-0"]
[ECO "D11"]
[WhiteElo "2695"]
[BlackElo "2525"]
[PlyCount "77"]
[EventDate "2025.02.13"]
[EventType "swiss"]
[EventCountry "NET"]
[TimeControl "600"]
[WhiteClock "0:04:40"]
[BlackClock "0:02:02"]

1. d4 {[%emt 0:00:01]} d5 {[%emt 0:00:04]} 2. c4 {[%emt 0:00:01]} c6 {[%emt 0:00:12]} 3. Nf3 {[%emt 0:00:03]} Nf6 {[%emt 0:00:02]} 4. Qc2 {[%emt 0:00:01]} dxc4 {[%emt 0:00:02]} 5. e4 {[%emt 0:00:01]} b5 {[%emt 0:00:02]} 6. b3 {[%emt 0:00:03]} cxb3 {[%emt 0:00:03]} 7. axb3 {[%emt 0:00:00]} e6 {[%emt 0:00:05]} 8. Bd3 {[%emt 0:00:07]} a5 {[%emt 0:00:03]} 9. O-O {[%emt 0:00:03]} Bb7 {[%emt 0:00:45]} 10. Bd2 {[%emt 0:00:09]} Be7 {[%emt 0:00:11]} 11. Rc1 {[%emt 0:00:27]} h6 {[%emt 0:00:06]} 12. Nc3 {[%emt 0:00:12]} Na6 {[%emt 0:00:12]} 13. e5 {[%emt 0:00:01]} Nb4 {[%emt 0:00:04]} 14. exf6 {[%emt 0:00:01]} Nxc2 {[%emt 0:00:02]} 15. fxe7 {[%emt 0:00:01]} Qxe7 {[%emt 0:00:09]} 16. Rxc2 {[%emt 0:00:01]} O-O {[%emt 0:00:16]} 17. Ne4 {[%emt 0:00:13]} c5 {[%emt 0:00:44]} 18. dxc5 {[%emt 0:00:02]} Rfd8 {[%emt 0:01:00]} 19. Nd6 {[%emt 0:00:07]} Bxf3 {[%emt 0:00:47]} 20. gxf3 {[%emt 0:00:00]} a4 {[%emt 0:00:07]} 21. Rca2 {[%emt 0:00:33]} Rxd6 {[%emt 0:00:39]} 22. cxd6 {[%emt 0:00:03]} Qxd6 {[%emt 0:00:00]} 23. Bxb5 {[%emt 0:00:25]} Qd5 {[%emt 0:00:28]} 24. bxa4 {[%emt 0:00:14]} Qxf3 {[%emt 0:00:02]} 25. Bf1 {[%emt 0:00:02]} Rd8 {[%emt 0:00:15]} 26. Bg2 {[%emt 0:00:48]} Qe2 {[%emt 0:00:10]} 27. Be1 {[%emt 0:00:14]} Qg4 {[%emt 0:00:19]} 28. h3 {[%emt 0:00:06]} Qg6 {[%emt 0:00:04]} 29. a5 {[%emt 0:00:08]} Rd5 {[%emt 0:00:01]} 30. a6 {[%emt 0:00:13]} Rg5 {[%emt 0:00:08]} 31. f4 {[%emt 0:00:01]} Rxg2+ {[%emt 0:00:13]} 32. Rxg2 {[%emt 0:00:01]} Qd3 {[%emt 0:00:11]} 33. Bf2 {[%emt 0:00:20]} Qc3 {[%emt 0:00:04]} 34. Re1 {[%emt 0:00:03]} Qxh3 {[%emt 0:00:06]} 35. a7 {[%emt 0:00:14]} Qf3 {[%emt 0:00:02]} 36. Rg3 {[%emt 0:00:13]} Qd5 {[%emt 0:00:04]} 37. Ra3 {[%emt 0:00:05]} Qa8 {[%emt 0:00:06]} 38. Rb3 {[%emt 0:00:01]} Kh7 {[%emt 0:00:10]} 39. Rb8 {[%emt 0:00:02]} 1-0

[Event "CCT Chessable Masters Play-In 2025"]
[Site "Online"]
[Date "2025.02.17"]
[Round "5.22"]
[White "Grischuk, Alexander"]
[Black "Paravyan, David"]
[Result "1-0"]
[ECO "D02"]
[WhiteElo "2687"]
[BlackElo "2621"]
[PlyCount "115"]
[EventDate "2025.02.13"]
[EventType "swiss"]
[EventCountry "NET"]
[TimeControl "600"]
[WhiteClock "0:00:02"]

1. d4 {[%emt 0:00:15]} d5 {[%emt 0:00:02]} 2. Nf3 {[%emt 0:00:02]} Nf6 {[%emt 0:00:01]} 3. Bf4 {[%emt 0:00:02]} Bf5 {[%emt 0:00:02]} 4. e3 {[%emt 0:01:23]} e6 {[%emt 0:00:03]} 5. Nbd2 {[%emt 0:00:03]} Bd6 {[%emt 0:00:03]} 6. Ne5 {[%emt 0:00:11]} Nbd7 {[%emt 0:00:13]} 7. Be2 {[%emt 0:00:16]} h6 {[%emt 0:00:23]} 8. c4 {[%emt 0:00:02]} Ne4 {[%emt 0:00:22]} 9. Nxe4 {[%emt 0:01:01]} Bxe4 {[%emt 0:00:08]} 10. f3 {[%emt 0:00:03]} Bh7 {[%emt 0:00:40]} 11. cxd5 {[%emt 0:00:18]} exd5 {[%emt 0:00:15]} 12. Qb3 {[%emt 0:00:02]} O-O {[%emt 0:00:43]} 13. Qxb7 {[%emt 0:02:10]} Rb8 {[%emt 0:00:03]} 14. Qc6 {[%emt 0:00:08]} Bf5 {[%emt 0:02:49]} 15. Qc1 {[%emt 0:00:41]} Bxe5 {[%emt 0:01:04]} 16. dxe5 {[%emt 0:00:04]} Qh4+ {[%emt 0:00:00]} 17. g3 {[%emt 0:00:36]} Qe7 {[%emt 0:00:02]} 18. g4 {[%emt 0:00:01]} Bg6 {[%emt 0:00:03]} 19. Qc3 {[%emt 0:00:07]} Rfe8 {[%emt 0:00:25]} 20. Kf2 {[%emt 0:00:56]} Nxe5 {[%emt 0:00:01]} 21. Rhd1 {[%emt 0:00:06]} c6 {[%emt 0:00:51]} 22. Rac1 {[%emt 0:00:05]} Qf6 {[%emt 0:00:23]} 23. b3 {[%emt 0:00:05]} h5 {[%emt 0:00:07]} 24. g5 {[%emt 0:00:03]} Qf5 {[%emt 0:00:14]} 25. h4 {[%emt 0:00:23]} f6 {[%emt 0:00:17]} 26. Rg1 {[%emt 0:00:04]} Kh7 {[%emt 0:00:13]} 27. Rg3 {[%emt 0:00:06]} c5 {[%emt 0:00:03]} 28. Qd2 {[%emt 0:00:08]} d4 {[%emt 0:00:08]} 29. e4 {[%emt 0:00:01]} Qe6 {[%emt 0:00:04]} 30. Rxc5 {[%emt 0:00:02]} d3 {[%emt 0:00:02]} 31. Bd1 {[%emt 0:00:01]} Rbc8 {[%emt 0:00:00]} 32. Rd5 {[%emt 0:00:03]} Qb6+ {[%emt 0:00:02]} 33. Be3 {[%emt 0:00:02]} Qc6 {[%emt 0:00:01]} 34. gxf6 {[%emt 0:00:01]} gxf6 {[%emt 0:00:00]} 35. Bd4 {[%emt 0:00:02]} Bf7 {[%emt 0:00:01]} 36. Qf4 {[%emt 0:00:05]} Qe6 {[%emt 0:00:03]} 37. Bxe5 {[%emt 0:00:04]} fxe5 {[%emt 0:00:00]} 38. Qe3 {[%emt 0:00:01]} Rg8 {[%emt 0:00:01]} 39. Rg5 {[%emt 0:00:05]} Rxg5 {[%emt 0:00:01]} 40. hxg5 {[%emt 0:00:00]} Qh3 {[%emt 0:00:00]} 41. Rxd3 {[%emt 0:00:01]} Qh2+ {[%emt 0:00:01]} 42. Ke1 {[%emt 0:00:01]} Qh1+ {[%emt 0:00:00]} 43. Kd2 {[%emt 0:00:01]} Qg2+ {[%emt 0:00:00]} 44. Be2 {[%emt 0:00:01]} Qh1 {[%emt 0:00:00]} 45. Rc3 {[%emt 0:00:02]} Rd8+ {[%emt 0:00:01]} 46. Rd3 {[%emt 0:00:00]} Rc8 {[%emt 0:00:00]} 47. Rc3 {[%emt 0:00:00]} Rd8+ {[%emt 0:00:01]} 48. Kc2 {[%emt 0:00:01]} Rd7 {[%emt 0:00:01]} 49. Kb2 {[%emt 0:00:00]} Bg6 {[%emt 0:00:00]} 50. Rc2 {[%emt 0:00:00]} Rf7 {[%emt 0:00:00]} 51. Bb5 {[%emt 0:00:01]} Qh4 {[%emt 0:00:00]} 52. Be8 {[%emt 0:00:00]} Qf4 {[%emt 0:00:00]} 53. Qd3 {[%emt 0:00:02]} Qxf3 {[%emt 0:00:01]} 54. Qc4 {[%emt 0:00:00]} Qf4 {[%emt 0:00:01]} 55. Bxf7 {[%emt 0:00:00]} Qxe4 {[%emt 0:00:00]} 56. Qc5 {[%emt 0:00:00]} Qf5 {[%emt 0:00:00]} 57. Rc3 {[%emt 0:00:00]} Qf4 58. Qc4 {[%emt 0:00:00]} 1-0

[Event "CCT Chessable Masters Play-In 2025"]
[Site "Online"]
[Date "2025.02.17"]
[Round "5.23"]
[White "Alekseev, Evgeny"]
[Black "Lu, Shanglei"]
[Result "0-1"]
[ECO "B45"]
[WhiteElo "2505"]
[BlackElo "2618"]
[PlyCount "100"]
[EventDate "2025.02.13"]
[EventType "swiss"]
[EventCountry "NET"]
[TimeControl "600"]
[WhiteClock "0:01:13"]
[BlackClock "0:02:14"]

1. e4 {[%emt 0:00:02]} c5 {[%emt 0:00:10]} 2. Nf3 {[%emt 0:00:01]} e6 {[%emt 0:00:02]} 3. d4 {[%emt 0:00:02]} cxd4 {[%emt 0:00:00]} 4. Nxd4 {[%emt 0:00:01]} Nf6 {[%emt 0:00:00]} 5. Nc3 {[%emt 0:00:02]} Nc6 {[%emt 0:00:01]} 6. Ndb5 {[%emt 0:00:09]} Bc5 {[%emt 0:00:03]} 7. Bf4 {[%emt 0:00:02]} O-O {[%emt 0:00:01]} 8. Bc7 {[%emt 0:00:02]} Qe7 {[%emt 0:00:01]} 9. Bd6 {[%emt 0:00:00]} Bxd6 {[%emt 0:00:00]} 10. Qxd6 {[%emt 0:00:01]} Qd8 {[%emt 0:00:00]} 11. Nc7 {[%emt 0:00:02]} Rb8 {[%emt 0:00:02]} 12. Be2 {[%emt 0:00:02]} b5 {[%emt 0:00:04]} 13. e5 {[%emt 0:00:02]} Ne8 {[%emt 0:00:01]} 14. Nxe8 {[%emt 0:00:03]} Rxe8 {[%emt 0:00:00]} 15. O-O {[%emt 0:00:11]} b4 {[%emt 0:00:03]} 16. Ne4 {[%emt 0:00:04]} Bb7 {[%emt 0:00:02]} 17. Qc5 {[%emt 0:00:26]} Qb6 {[%emt 0:01:09]} 18. Qxb6 {[%emt 0:00:15]} axb6 {[%emt 0:00:01]} 19. Nd6 {[%emt 0:00:07]} Red8 {[%emt 0:00:29]} 20. f4 {[%emt 0:00:09]} f6 {[%emt 0:00:23]} 21. exf6 {[%emt 0:01:07]} gxf6 {[%emt 0:00:00]} 22. Bf3 {[%emt 0:00:09]} Ba8 {[%emt 0:00:13]} 23. Rfd1 {[%emt 0:00:31]} Kf8 {[%emt 0:00:03]} 24. Rd3 {[%emt 0:00:26]} Ne7 {[%emt 0:00:39]} 25. Be2 {[%emt 0:00:20]} Nd5 {[%emt 0:00:15]} 26. g3 {[%emt 0:00:11]} Ke7 {[%emt 0:00:04]} 27. Nb5 {[%emt 0:00:02]} Rbc8 {[%emt 0:00:16]} 28. Rd2 {[%emt 0:00:12]} Rc5 {[%emt 0:00:33]} 29. Kf2 {[%emt 0:00:09]} Bb7 {[%emt 0:00:14]} 30. a4 {[%emt 0:00:24]} f5 {[%emt 0:00:19]} 31. Bf3 {[%emt 0:00:22]} Rdc8 {[%emt 0:00:09]} 32. Nd4 {[%emt 0:00:06]} R8c7 {[%emt 0:00:20]} 33. Rad1 {[%emt 0:00:09]} Nf6 {[%emt 0:00:05]} 34. Nb5 {[%emt 0:00:20]} Bxf3 {[%emt 0:00:02]} 35. Kxf3 {[%emt 0:00:03]} Rc8 {[%emt 0:00:06]} 36. Nd4 {[%emt 0:00:18]} Ne4 {[%emt 0:00:05]} 37. Rd3 {[%emt 0:00:08]} d5 {[%emt 0:00:17]} 38. h3 {[%emt 0:00:22]} h5 {[%emt 0:00:01]} 39. Rg1 {[%emt 0:00:01]} Rg8 {[%emt 0:00:28]} 40. Rg2 {[%emt 0:00:07]} Rc4 {[%emt 0:00:04]} 41. Rd1 {[%emt 0:00:07]} Kf6 {[%emt 0:00:07]} 42. Rd3 {[%emt 0:00:07]} Rc7 {[%emt 0:00:07]} 43. Rd1 {[%emt 0:00:02]} Rc4 {[%emt 0:00:04]} 44. Rd3 {[%emt 0:00:02]} Nc5 {[%emt 0:00:07]} 45. Rd1 {[%emt 0:00:14]} Nxa4 {[%emt 0:00:01]} 46. Re2 {[%emt 0:00:03]} Nc5 {[%emt 0:00:04]} 47. Re5 {[%emt 0:00:20]} Kf7 {[%emt 0:00:20]} 48. Nxe6 {[%emt 0:00:23]} Nxe6 {[%emt 0:00:02]} 49. Rxf5+ {[%emt 0:00:01]} Ke7 {[%emt 0:00:05]} 50. Rfxd5 {[%emt 0:00:18]} h4 {[%emt 0:00:04]} 0-1

[Event "CCT Chessable Masters Play-In 2025"]
[Site "Online"]
[Date "2025.02.17"]
[Round "5.24"]
[White "Bok, Benjamin"]
[Black "Pranav, V."]
[Result "0-1"]
[ECO "D25"]
[WhiteElo "2583"]
[BlackElo "2615"]
[PlyCount "140"]
[EventDate "2025.02.13"]
[EventType "swiss"]
[EventCountry "NET"]
[TimeControl "600"]

1. d4 {[%emt 0:00:01]} d5 {[%emt 0:00:02]} 2. c4 {[%emt 0:00:01]} dxc4 {[%emt 0:00:01]} 3. Nf3 {[%emt 0:00:01]} Nf6 {[%emt 0:00:02]} 4. e3 {[%emt 0:00:01]} Bg4 {[%emt 0:00:01]} 5. Bxc4 {[%emt 0:00:02]} e6 {[%emt 0:00:01]} 6. h3 {[%emt 0:00:02]} Bh5 {[%emt 0:00:03]} 7. Nc3 {[%emt 0:00:03]} Nc6 {[%emt 0:00:07]} 8. O-O {[%emt 0:00:02]} Bd6 {[%emt 0:00:05]} 9. Re1 {[%emt 0:00:04]} O-O {[%emt 0:00:02]} 10. g4 {[%emt 0:00:12]} Bg6 {[%emt 0:00:03]} 11. e4 {[%emt 0:00:01]} Bb4 {[%emt 0:01:44]} 12. Bg5 {[%emt 0:00:04]} h6 {[%emt 0:00:04]} 13. Bh4 {[%emt 0:00:03]} Be7 {[%emt 0:00:02]} 14. Bg3 {[%emt 0:01:10]} Bb4 {[%emt 0:00:04]} 15. Bh4 {[%emt 0:00:36]} Be7 {[%emt 0:00:02]} 16. Bg3 {[%emt 0:01:06]} Na5 {[%emt 0:00:55]} 17. Bf1 {[%emt 0:00:12]} c5 {[%emt 0:00:05]} 18. d5 {[%emt 0:00:47]} exd5 {[%emt 0:00:02]} 19. exd5 {[%emt 0:00:03]} Bd6 {[%emt 0:00:09]} 20. Ne5 {[%emt 0:00:03]} a6 {[%emt 0:00:35]} 21. Rc1 {[%emt 0:00:20]} Rc8 {[%emt 0:00:27]} 22. b3 {[%emt 0:00:18]} b5 {[%emt 0:01:00]} 23. Nxg6 {[%emt 0:00:37]} fxg6 {[%emt 0:00:02]} 24. Bxd6 {[%emt 0:00:01]} Qxd6 {[%emt 0:00:00]} 25. Qd2 {[%emt 0:00:03]} Qd8 {[%emt 0:00:42]} 26. d6 {[%emt 0:00:26]} Rc6 {[%emt 0:00:24]} 27. Rcd1 {[%emt 0:00:05]} Nb7 {[%emt 0:00:05]} 28. Ne4 {[%emt 0:00:47]} Kh7 {[%emt 0:00:19]} 29. d7 {[%emt 0:00:45]} Nxe4 {[%emt 0:01:04]} 30. Rxe4 {[%emt 0:00:00]} Rcf6 {[%emt 0:00:01]} 31. Qe3 {[%emt 0:00:40]} Qc7 {[%emt 0:00:54]} 32. Re8 {[%emt 0:00:23]} Nd8 {[%emt 0:00:01]} 33. Rd2 {[%emt 0:00:11]} c4 {[%emt 0:00:18]} 34. bxc4 {[%emt 0:00:04]} bxc4 {[%emt 0:00:00]} 35. Qe7 {[%emt 0:00:05]} R6f7 {[%emt 0:00:02]} 36. Qxf8 {[%emt 0:00:21]} Rxf8 {[%emt 0:00:01]} 37. Rxf8 {[%emt 0:00:00]} c3 {[%emt 0:00:04]} 38. Rc2 {[%emt 0:00:01]} Qxd7 {[%emt 0:00:07]} 39. Rxc3 {[%emt 0:00:00]} Qe7 {[%emt 0:00:02]} 40. Rff3 {[%emt 0:00:02]} Ne6 {[%emt 0:00:02]} 41. Rfe3 {[%emt 0:00:01]} Qd6 {[%emt 0:00:01]} 42. Rcd3 {[%emt 0:00:00]} Qb6 {[%emt 0:00:01]} 43. Rd7 {[%emt 0:00:02]} Nf4 {[%emt 0:00:03]} 44. Ree7 {[%emt 0:00:02]} Qf6 {[%emt 0:00:04]} 45. Rxg7+ {[%emt 0:00:00]} Qxg7 {[%emt 0:00:01]} 46. Rxg7+ {[%emt 0:00:00]} Kxg7 {[%emt 0:00:00]} 47. Bxa6 {[%emt 0:00:01]} Nxh3+ {[%emt 0:00:00]} 48. Kf1 {[%emt 0:00:00]} Nf4 {[%emt 0:00:00]} 49. a4 {[%emt 0:00:01]} Kf6 {[%emt 0:00:01]} 50. a5 {[%emt 0:00:00]} Nd5 {[%emt 0:00:00]} 51. Bb7 {[%emt 0:00:01]} Nc7 {[%emt 0:00:01]} 52. a6 {[%emt 0:00:00]} Nb5 {[%emt 0:00:00]} 53. f4 {[%emt 0:00:00]} Na7 {[%emt 0:00:00]} 54. Kf2 {[%emt 0:00:02]} h5 {[%emt 0:00:00]} 55. g5+ {[%emt 0:00:01]} Kf5 {[%emt 0:00:00]} 56. Kf3 {[%emt 0:00:00]} Ke6 {[%emt 0:00:01]} 57. Be4 {[%emt 0:00:00]} Kf7 {[%emt 0:00:00]} 58. Ke3 {[%emt 0:00:01]} Kg7 {[%emt 0:00:00]} 59. Kd4 {[%emt 0:00:00]} h4 {[%emt 0:00:00]} 60. Kc5 {[%emt 0:00:01]} Nc8 {[%emt 0:00:00]} 61. Bb7 {[%emt 0:00:01]} Ne7 {[%emt 0:00:00]} 62. Kb6 {[%emt 0:00:01]} Nf5 {[%emt 0:00:00]} 63. a7 {[%emt 0:00:00]} Ne3 {[%emt 0:00:01]} 64. a8=Q {[%emt 0:00:00]} Nc4+ {[%emt 0:00:00]} 65. Kc5 {[%emt 0:00:01]} Nd6 {[%emt 0:00:00]} 66. Bd5 {[%emt 0:00:00]} Nf7 {[%emt 0:00:00]} 67. Qe8 {[%emt 0:00:01]} Ne5 {[%emt 0:00:00]} 68. Qe7+ {[%emt 0:00:00]} Nf7 {[%emt 0:00:01]} 69. Qf6+ {[%emt 0:00:00]} Kh7 {[%emt 0:00:01]} 70. Qe7 Kh8 {[%emt 0:00:00]} 0-1